fUST/lending_fUST_20250628
["ID","MTS","AMOUNT","RATE_DAILY","PERIOD"]
[368184844,1751052655453,-460.0,0.0002,2]
[368184845,1751052655463,-460.0,0.0002,2]
[368184846,1751052655474,-3376.72,0.0002,2]
[368184847,1751052655484,-615.39,0.0002,2]
[368184848,1751052655494,-1140.07,0.0002,2]
[368184849,1751052655504,-3869.59,0.0002,2]
[368184850,1751052655513,-460.0,0.0002,2]
[368184851,1751052655523,-2384.21,0.0002,2]
[368184852,1751052655533,-637.12,0.0002,2]
[368184853,1751052655543,-460.0,0.0002,2]
[368184854,1751052655553,-460.0,0.0002,2]
[368184855,1751052655563,-5918.62,0.0002,2]
[368184856,1751052655573,-460.0,0.0002,2]
[368184857,1751052655583,-770.71,0.0002,2]
[368184858,1751052655593,-460.0,0.0002,2]
[368184859,1751052655605,-460.0,0.0002,2]
[368184860,1751052655615,-465.81291526,0.0002,2]
[368184861,1751052655625,-460.0,0.0002,2]
[368184862,1751052655635,-460.0,0.0002,2]
[368184863,1751052655645,-2145.65,0.0002,2]
[368184864,1751052655655,-460.0,0.0002,2]
[368184865,1751052655666,-1645.29,0.0002,2]
[368184866,1751052655677,-460.0,0.0002,2]
[368184867,1751052655687,-460.0,0.0002,2]
[368184868,1751052655698,-2364.11,0.0002,2]
[368184869,1751052655862,-460.0,0.0002,2]
[368184870,1751052655872,-460.0,0.0002,2]
[368184871,1751052655883,-460.0,0.0002,2]
[368184872,1751052655892,-460.0,0.0002,2]
[368184873,1751052655902,-460.0,0.0002,2]
[368184874,1751052655911,-594.37,0.0002,2]
[368184875,1751052655921,-460.0,0.0002,2]
[368184876,1751052655930,-924.4,0.0002,2]
[368184877,1751052655944,-499.78424326,0.0002,2]
[368184878,1751052655954,-627.61,0.0002,2]
[368184879,1751052655963,-2181.9,0.0002,2]
[368184880,1751052655972,-460.0,0.0002,2]
[368184881,1751052655982,-460.0,0.0002,2]
[368184882,1751052655991,-460.0,0.0002,2]
[368184883,1751052656000,-853.71,0.0002,2]
[368184884,1751052656011,-2297.35,0.0002,2]
[368184885,1751052656022,-861.77,0.0002,2]
[368184886,1751052656031,-460.0,0.0002,2]
[368184887,1751052656041,-460.0,0.0002,2]
[368184888,1751052656051,-460.0,0.0002,2]
[368184889,1751052656060,-1670.06,0.0002,2]
[368184890,1751052656069,-460.0,0.0002,2]
[368184891,1751052656078,-460.0,0.0002,2]
[368184892,1751052656088,-460.0,0.0002,2]
[368184893,1751052656098,-460.0,0.0002,2]
[368184894,1751052656108,-460.0,0.0002,2]
[368184895,1751052656118,-460.0,0.0002,2]
[368184896,1751052656128,-460.0,0.0002,2]
[368184897,1751052656137,-1454.24,0.0002,2]
[368184898,1751052656147,-2486.78,0.0002,2]
[368184899,1751052656157,-460.0,0.0002,2]
[368184900,1751052656167,-460.0,0.0002,2]
[368184901,1751052656176,-584.46,0.0002,2]
[368184902,1751052656185,-460.0,0.0002,2]
[368184903,1751052656195,-460.0,0.0002,2]
[368184904,1751052656204,-460.0,0.0002,2]
[368184905,1751052656214,-460.0,0.0002,2]
[368184906,1751052656223,-523.83,0.0002,2]
[368184907,1751052656233,-723.03,0.0002,2]
[368184908,1751052656242,-1169.97,0.0002,2]
[368184909,1751052656253,-1127.03,0.0002,2]
[368184910,1751052656263,-719.13,0.0002,2]
[368184911,1751052656272,-735.82,0.0002,2]
[368184912,1751052656281,-859.39,0.0002,2]
[368184913,1751052656290,-617.53,0.0002,2]
[368184914,1751052656299,-460.0,0.0002,2]
[368184915,1751052656308,-394.91559857,0.0002,2]
[368184916,1751052656317,-460.0,0.0002,2]
[368184917,1751052656326,-825.22,0.0002,2]
[368184918,1751052656336,-453.12734487,0.0002,2]
[368184919,1751052656346,-410.0,0.0002,2]
[368184920,1751052656357,-460.0,0.0002,2]
[368184921,1751052656366,-460.0,0.0002,2]
[368184922,1751052656375,-916.36,0.0002,2]
[368184923,1751052656384,-2447.11,0.0002,2]
[368184924,1751052656394,-460.0,0.0002,2]
[368184925,1751052656403,-460.0,0.0002,2]
[368184926,1751052656412,-460.0,0.0002,2]
[368184927,1751052656422,-2742.82,0.0002,2]
[368184928,1751052656431,-4031.83,0.0002,2]
[368184929,1751052656440,-460.0,0.0002,2]
[368184930,1751052656450,-460.0,0.0002,2]
[368184931,1751052656459,-460.0,0.0002,2]
[368184932,1751052656468,-460.0,0.0002,2]
[368184933,1751052656478,-460.0,0.0002,2]
[368184934,1751052656487,-460.0,0.0002,2]
[368184935,1751052656496,-460.0,0.0002,2]
[368184936,1751052656505,-460.0,0.0002,2]
[368184937,1751052656515,-460.0,0.0002,2]
[368184938,1751052656524,-768.54,0.0002,2]
[368184939,1751052656533,-460.0,0.0002,2]
[368184940,1751052656543,-460.0,0.0002,2]
[368184941,1751052656552,-7682.97,0.0002,2]
[368184942,1751052656561,-460.0,0.0002,2]
[368184943,1751052656571,-475.94843183,0.0002,2]
[368184944,1751052656580,-907.91,0.0002,2]
[368184945,1751052656589,-460.0,0.0002,2]
[368184946,1751052656599,-460.0,0.0002,2]
[368184947,1751052656611,-460.0,0.0002,2]
[368184948,1751052656620,-975.77,0.0002,2]
[368184949,1751052656629,-460.0,0.0002,2]
[368184950,1751052656639,-460.0,0.0002,2]
[368184951,1751052656648,-532.67,0.0002,2]
[368184952,1751052656658,-460.0,0.0002,2]
[368184953,1751052656667,-8376.54,0.0002,2]
[368184954,1751052656676,-460.0,0.0002,2]
[368184955,1751052656686,-460.0,0.0002,2]
[368184956,1751052656695,-966.56,0.0002,2]
[368184957,1751052656704,-1863.89,0.0002,2]
[368184958,1751052656713,-662.11,0.0002,2]
[368184959,1751052656722,-4593.24,0.0002,2]
[368184960,1751052656731,-460.0,0.0002,2]
[368184961,1751052656740,-460.0,0.0002,2]
[368184962,1751052656749,-460.0,0.0002,2]
[368184963,1751052656758,-3839.3,0.0002,2]
[368184964,1751052656767,-1521.91,0.0002,2]
[368184965,1751052656776,-460.0,0.0002,2]
[368184966,1751052656785,-460.0,0.0002,2]
[368184967,1751052656794,-460.0,0.0002,2]
[368184968,1751052656804,-466.39756958,0.0002,2]
[368184969,1751052656813,-796.1,0.0002,2]
[368184970,1751052656822,-897.01,0.0002,2]
[368184971,1751052656831,-526.08,0.0002,2]
[368184972,1751052656840,-460.0,0.0002,2]
[368184973,1751052656849,-460.0,0.0002,2]
[368184974,1751052656860,-460.0,0.0002,2]
[368184975,1751052656869,-151.0,0.0002,2]
[368184976,1751052656878,-160.0,0.00020018,2]
[368184977,1751052656887,-288.09348078,0.00020021,2]
[368184978,1751052656896,-1000.0,0.00020021,2]
[368184979,1751052656905,-237.02162087,0.00020028,2]
[368184980,1751052656914,-275.3553201,0.00020061,2]
[368184981,1751052656923,-5984.32231357,0.00020141,2]
[368184982,1751052656933,-557.594782,0.00020187,2]
[368184983,1751052656948,-318.3632662,0.00020192,2]
[368184984,1751052656957,-174.71796,0.0002021,3]
[368184985,1751052656967,-460.0,0.00020273,2]
[368184986,1751052656976,-460.0,0.00020273,2]
[368184987,1751052656986,-181.868175,0.00020273,2]
[368184988,1751052656995,-181.868175,0.00020273,2]
[368184989,1751052657005,-181.868175,0.00020273,2]
[368184990,1751052657015,-181.868175,0.00020273,2]
[368184991,1751052657024,-460.0,0.00020273,2]
[368184992,1751052657033,-460.0,0.00020273,2]
[368184993,1751052657043,-460.0,0.00020273,2]
[368184994,1751052657052,-460.0,0.00020273,2]
[368184995,1751052657061,-460.0,0.00020273,2]
[368184996,1751052657071,-552.70506603,0.00020273,2]
[368184997,1751052657080,-460.0,0.00020273,2]
[368184998,1751052657089,-274.84049211,0.00020273,2]
[368184999,1751052657100,-279.76935242,0.00020273,2]
[368185000,1751052657111,-460.0,0.00020273,2]
[368185001,1751052657120,-460.0,0.00020273,2]
[368185002,1751052657129,-460.0,0.00020273,2]
[368185003,1751052657139,-460.0,0.00020273,2]
[368185004,1751052657148,-460.0,0.00020273,2]
[368185005,1751052657157,-460.0,0.00020273,2]
[368185006,1751052657166,-460.0,0.00020273,2]
[368185007,1751052657175,-460.0,0.00020273,2]
[368185008,1751052657185,-460.0,0.00020273,2]
[368185009,1751052657194,-460.0,0.00020273,2]
[368185010,1751052657203,-346.40532358,0.00020273,2]
[368185011,1751052657212,-577.94619889,0.00020273,2]
[368185012,1751052657222,-460.0,0.00020273,2]
[368185013,1751052657232,-513.50837655,0.00020273,2]
[368185014,1751052657241,-460.0,0.00020273,2]
[368185015,1751052657252,-394.70628696,0.00020273,2]
[368185016,1751052657262,-518.56617891,0.00020273,2]
[368185017,1751052657271,-460.0,0.00020273,2]
[368185018,1751052657280,-462.99488322,0.00020273,2]
[368185019,1751052657289,-460.0,0.00020273,2]
[368185020,1751052657298,-460.0,0.00020273,2]
[368185021,1751052657307,-460.0,0.00020273,2]
[368185022,1751052657317,-460.0,0.00020273,2]
[368185023,1751052657328,-255.53,0.00020273,2]
[368185024,1751052657338,-460.0,0.00020273,2]
[368185025,1751052657348,-860.73,0.00020273,2]
[368185026,1751052657358,-460.0,0.00020273,2]
[368185027,1751052657367,-460.0,0.00020273,2]
[368185028,1751052657376,-784.18,0.00020273,2]
[368185029,1751052657385,-463.12387711,0.00020273,2]
[368185030,1751052657394,-414.1944289,0.00020273,2]
[368185031,1751052657403,-460.0,0.00020273,2]
[368185032,1751052657412,-485.60869425,0.00020273,2]
[368185033,1751052657421,-1042.4,0.00020273,2]
[368185034,1751052657432,-460.0,0.00020273,2]
[368185035,1751052657441,-460.0,0.00020273,2]
[368185036,1751052657451,-460.0,0.00020273,2]
[368185037,1751052657460,-460.0,0.00020273,2]
[368185038,1751052657469,-460.0,0.00020273,2]
[368185039,1751052657478,-460.0,0.00020273,2]
[368185040,1751052657487,-523.43,0.00020273,2]
[368185041,1751052657496,-460.0,0.00020273,2]
[368185042,1751052657505,-460.0,0.00020273,2]
[368185043,1751052657514,-460.0,0.00020273,2]
[368185044,1751052657523,-460.0,0.00020273,2]
[368185045,1751052657532,-460.0,0.00020273,2]
[368185046,1751052657541,-460.0,0.00020273,2]
[368185047,1751052657550,-571.55139027,0.00020273,2]
[368185048,1751052657559,-460.0,0.00020273,2]
[368185049,1751052657568,-460.0,0.00020273,2]
[368185050,1751052657577,-460.0,0.00020273,2]
[368185051,1751052657588,-596.41,0.00020273,2]
[368185052,1751052657597,-460.0,0.00020273,2]
[368185053,1751052657607,-460.0,0.00020273,2]
[368185054,1751052657617,-538.39,0.00020273,2]
[368185055,1751052657626,-460.0,0.00020273,2]
[368185056,1751052657636,-460.0,0.00020273,2]
[368185057,1751052657646,-460.0,0.00020273,2]
[368185058,1751052657655,-460.0,0.00020273,2]
[368185059,1751052657664,-460.0,0.00020273,2]
[368185060,1751052657673,-559.06,0.00020273,2]
[368185061,1751052657682,-460.0,0.00020273,2]
[368185062,1751052657691,-460.0,0.00020273,2]
[368185063,1751052657701,-460.0,0.00020273,2]
[368185064,1751052657710,-557.93,0.00020273,2]
[368185065,1751052657719,-460.0,0.00020273,2]
[368185066,1751052657728,-460.0,0.00020273,2]
[368185067,1751052657737,-460.0,0.00020273,2]
[368185068,1751052657746,-460.0,0.00020273,2]
[368185069,1751052657755,-169.94755432,0.00020273,2]
[368185070,1751052657764,-462.42,0.00020273,2]
[368185071,1751052657773,-982.78,0.00020273,2]
[368185072,1751052657783,-460.0,0.00020273,2]
[368185073,1751052657792,-460.0,0.00020273,2]
[368185074,1751052657802,-460.0,0.00020273,2]
[368185075,1751052657812,-460.0,0.00020273,2]
[368185076,1751052657822,-460.0,0.00020273,2]
[368185077,1751052657831,-460.0,0.00020273,2]
[368185078,1751052657840,-460.0,0.00020273,2]
[368185079,1751052657851,-548.66,0.00020273,2]
[368185080,1751052657860,-845.73,0.00020273,2]
[368185081,1751052657869,-460.0,0.00020273,2]
[368185082,1751052657879,-460.0,0.00020273,2]
[368185083,1751052657888,-578.18,0.00020273,2]
[368185084,1751052657897,-460.0,0.00020273,2]
[368185085,1751052657906,-208.4586394,0.00020273,2]
[368185086,1751052657916,-460.0,0.00020273,2]
[368185087,1751052657926,-460.0,0.00020273,2]
[368185088,1751052657937,-460.0,0.00020273,2]
[368185089,1751052657949,-460.0,0.00020273,2]
[368185090,1751052657960,-460.0,0.00020273,2]
[368185091,1751052657969,-460.0,0.00020273,2]
[368185092,1751052657984,-460.0,0.00020273,2]
[368185093,1751052657993,-540.1,0.00020273,2]
[368185094,1751052658003,-957.57,0.00020273,2]
[368185095,1751052658014,-460.0,0.00020273,2]
[368185096,1751052658028,-460.0,0.00020273,2]
[368185097,1751052658037,-460.0,0.00020273,2]
[368185098,1751052658047,-3376.72,0.00020273,2]
[368185099,1751052658057,-615.39,0.00020273,2]
[368185100,1751052658066,-1140.07,0.00020273,2]
[368185101,1751052658076,-3869.59,0.00020273,2]
[368185102,1751052658085,-460.0,0.00020273,2]
[368185103,1751052658095,-2384.21,0.00020273,2]
[368185104,1751052658105,-637.12,0.00020273,2]
[368185105,1751052658115,-460.0,0.00020273,2]
[368185106,1751052658125,-466.79636925,0.00020273,2]
[368185107,1751052658135,-5918.62,0.00020273,2]
[368185108,1751052658145,-460.0,0.00020273,2]
[368185109,1751052658154,-770.71,0.00020273,2]
[368185110,1751052658164,-460.0,0.00020273,2]
[368185111,1751052658173,-460.0,0.00020273,2]
[368185112,1751052658182,-460.0,0.00020273,2]
[368185113,1751052658192,-460.0,0.00020273,2]
[368185114,1751052658201,-2145.65,0.00020273,2]
[368185115,1751052658211,-460.0,0.00020273,2]
[368185116,1751052658221,-1645.29,0.00020273,2]
[368185117,1751052658231,-460.0,0.00020273,2]
[368185118,1751052658241,-2364.11,0.00020273,2]
[368185119,1751052658250,-460.0,0.00020273,2]
[368185120,1751052658260,-460.0,0.00020273,2]
[368185121,1751052658269,-460.0,0.00020273,2]
[368185122,1751052658279,-460.0,0.00020273,2]
[368185123,1751052658287,-594.37,0.00020273,2]
[368185124,1751052658296,-460.0,0.00020273,2]
[368185125,1751052658306,-924.4,0.00020273,2]
[368185126,1751052658316,-627.61,0.00020273,2]
[368185127,1751052658326,-2181.9,0.00020273,2]
[368185128,1751052658336,-460.0,0.00020273,2]
[368185129,1751052658346,-460.0,0.00020273,2]
[368185130,1751052658356,-460.0,0.00020273,2]
[368185131,1751052658365,-853.71,0.00020273,2]
[368185132,1751052658375,-2297.35,0.00020273,2]
[368185133,1751052658384,-861.77,0.00020273,2]
[368185134,1751052658393,-460.0,0.00020273,2]
[368185135,1751052658403,-460.0,0.00020273,2]
[368185136,1751052658412,-460.0,0.00020273,2]
[368185137,1751052658422,-1670.06,0.00020273,2]
[368185138,1751052658431,-460.0,0.00020273,2]
[368185139,1751052658440,-460.0,0.00020273,2]
[368185140,1751052658450,-460.0,0.00020273,2]
[368185141,1751052658459,-460.0,0.00020273,2]
[368185142,1751052658469,-460.0,0.00020273,2]
[368185143,1751052658478,-460.0,0.00020273,2]
[368185144,1751052658487,-1454.24,0.00020273,2]
[368185145,1751052658496,-2486.78,0.00020273,2]
[368185146,1751052658506,-460.0,0.00020273,2]
[368185147,1751052658515,-460.0,0.00020273,2]
[368185148,1751052658525,-584.46,0.00020273,2]
[368185149,1751052658534,-460.0,0.00020273,2]
[368185150,1751052658543,-460.0,0.00020273,2]
[368185151,1751052658553,-460.0,0.00020273,2]
[368185152,1751052658562,-460.0,0.00020273,2]
[368185153,1751052658572,-523.83,0.00020273,2]
[368185154,1751052658581,-723.03,0.00020273,2]
[368185155,1751052658591,-1169.97,0.00020273,2]
[368185156,1751052658602,-1127.03,0.00020273,2]
[368185157,1751052658612,-719.13,0.00020273,2]
[368185158,1751052658621,-735.82,0.00020273,2]
[368185159,1751052658630,-859.39,0.00020273,2]
[368185160,1751052658639,-617.53,0.00020273,2]
[368185161,1751052658648,-460.0,0.00020273,2]
[368185162,1751052658657,-460.0,0.00020273,2]
[368185163,1751052658667,-825.22,0.00020273,2]
[368185164,1751052658677,-460.0,0.00020273,2]
[368185165,1751052658686,-460.0,0.00020273,2]
[368185166,1751052658695,-916.36,0.00020273,2]
[368185167,1751052658705,-2447.11,0.00020273,2]
[368185168,1751052658715,-460.0,0.00020273,2]
[368185169,1751052658725,-460.0,0.00020273,2]
[368185170,1751052658735,-2742.82,0.00020273,2]
[368185171,1751052658745,-4031.83,0.00020273,2]
[368185172,1751052658754,-460.0,0.00020273,2]
[368185173,1751052658766,-460.0,0.00020273,2]
[368185174,1751052658776,-460.0,0.00020273,2]
[368185175,1751052658786,-460.0,0.00020273,2]
[368185176,1751052658796,-460.0,0.00020273,2]
[368185177,1751052658806,-460.0,0.00020273,2]
[368185178,1751052658815,-460.0,0.00020273,2]
[368185179,1751052658825,-460.0,0.00020273,2]
[368185180,1751052658835,-460.0,0.00020273,2]
[368185181,1751052658844,-768.54,0.00020273,2]
[368185182,1751052658854,-460.0,0.00020273,2]
[368185183,1751052658864,-460.0,0.00020273,2]
[368185184,1751052658873,-7682.97,0.00020273,2]
[368185185,1751052658883,-460.0,0.00020273,2]
[368185186,1751052658893,-907.91,0.00020273,2]
[368185187,1751052658902,-460.0,0.00020273,2]
[368185188,1751052658911,-460.0,0.00020273,2]
[368185189,1751052658921,-975.77,0.00020273,2]
[368185190,1751052658933,-460.0,0.00020273,2]
[368185191,1751052658946,-460.0,0.00020273,2]
[368185192,1751052658955,-532.67,0.00020273,2]
[368185193,1751052658964,-152.83557347,0.00020273,2]
[368185194,1751052659103,-8376.54,0.00020273,2]
[368185195,1751052659114,-344.97821184,0.00020273,2]
[368185196,1751052659124,-460.0,0.00020273,2]
[368185197,1751052659133,-966.56,0.00020273,2]
[368185198,1751052659143,-1863.89,0.00020273,2]
[368185199,1751052659152,-662.11,0.00020273,2]
[368185200,1751052659162,-460.0,0.00020273,2]
[368185201,1751052659171,-4593.24,0.00020273,2]
[368185202,1751052659180,-400.17760738,0.00020273,2]
[368185203,1751052659189,-460.0,0.00020273,2]
[368185204,1751052659198,-3839.3,0.00020273,2]
[368185205,1751052659208,-1521.91,0.00020273,2]
[368185206,1751052659218,-460.0,0.00020273,2]
[368185207,1751052659228,-460.0,0.00020273,2]
[368185208,1751052659237,-460.0,0.00020273,2]
[368185209,1751052659247,-796.1,0.00020273,2]
[368185210,1751052659256,-897.01,0.00020273,2]
[368185211,1751052659266,-526.08,0.00020273,2]
[368185212,1751052659275,-460.0,0.00020273,2]
[368185213,1751052659285,-460.0,0.00020273,2]
[368185214,1751052659295,-460.0,0.00020273,2]
[368185215,1751052659304,-168.0,0.00020335,2]
[368185216,1751052659313,-12640.82011563,0.00020342,2]
[368185217,1751052659324,-5984.32231357,0.00020383,3]
[368185218,1751052659333,-151.0,0.000204,4]
[368185219,1751052659343,-460.0,0.00020547,2]
[368185220,1751052659352,-463.81311764,0.00020547,2]
[368185221,1751052659362,-181.868175,0.00020547,2]
[368185222,1751052659372,-181.868175,0.00020547,2]
[368185223,1751052659381,-460.0,0.00020547,2]
[368185224,1751052659391,-463.36655141,0.00020547,2]
[368185225,1751052659400,-460.0,0.00020547,2]
[368185226,1751052659409,-385.24756272,0.00020547,2]
[368185227,1751052659418,-460.0,0.00020547,2]
[368185228,1751052659427,-460.0,0.00020547,2]
[368185229,1751052659437,-460.0,0.00020547,2]
[368185230,1751052659446,-460.0,0.00020547,2]
[368185231,1751052659455,-460.0,0.00020547,2]
[368185232,1751052659464,-460.0,0.00020547,2]
[368185233,1751052659473,-460.0,0.00020547,2]
[368185234,1751052659483,-471.12990951,0.00020547,2]
[368185235,1751052659493,-460.0,0.00020547,2]
[368185236,1751052659502,-460.0,0.00020547,2]
[368185237,1751052659511,-460.0,0.00020547,2]
[368185238,1751052659520,-283.30121251,0.00020547,2]
[368185239,1751052659530,-460.0,0.00020547,2]
[368185240,1751052659539,-460.0,0.00020547,2]
[368185241,1751052659549,-460.0,0.00020547,2]
[368185242,1751052659559,-460.0,0.00020547,2]
[368185243,1751052659568,-460.0,0.00020547,2]
[368185244,1751052659578,-860.73,0.00020547,2]
[368185245,1751052659588,-360.77158817,0.00020547,2]
[368185246,1751052659598,-375.31391494,0.00020547,2]
[368185247,1751052659609,-784.18,0.00020547,2]
[368185248,1751052659619,-460.0,0.00020547,2]
[368185249,1751052659628,-1042.4,0.00020547,2]
[368185250,1751052659637,-460.0,0.00020547,2]
[368185251,1751052659647,-460.0,0.00020547,2]
[368185252,1751052659656,-460.0,0.00020547,2]
[368185253,1751052659666,-460.0,0.00020547,2]
[368185254,1751052659676,-460.0,0.00020547,2]
[368185255,1751052659686,-460.0,0.00020547,2]
[368185256,1751052659695,-460.0,0.00020547,2]
[368185257,1751052659704,-460.0,0.00020547,2]
[368185258,1751052659713,-460.0,0.00020547,2]
[368185259,1751052659722,-460.0,0.00020547,2]
[368185260,1751052659732,-460.0,0.00020547,2]
[368185261,1751052659741,-460.0,0.00020547,2]
[368185262,1751052659751,-460.0,0.00020547,2]
[368185263,1751052659760,-460.0,0.00020547,2]
[368185264,1751052659770,-596.41,0.00020547,2]
[368185265,1751052659779,-460.0,0.00020547,2]
[368185266,1751052659789,-460.0,0.00020547,2]
[368185267,1751052659798,-538.39,0.00020547,2]
[368185268,1751052659807,-460.0,0.00020547,2]
[368185269,1751052659817,-151.5931537,0.00020547,2]
[368185270,1751052659826,-176.12672854,0.00020547,2]
[368185271,1751052659835,-460.0,0.00020547,2]
[368185272,1751052659844,-460.0,0.00020547,2]
[368185273,1751052659854,-460.0,0.00020547,2]
[368185274,1751052659863,-460.0,0.00020547,2]
[368185275,1751052659872,-460.0,0.00020547,2]
[368185276,1751052659881,-460.0,0.00020547,2]
[368185277,1751052659891,-460.0,0.00020547,2]
[368185278,1751052659900,-460.0,0.00020547,2]
[368185279,1751052659909,-460.0,0.00020547,2]
[368185280,1751052659919,-462.42,0.00020547,2]
[368185281,1751052659928,-982.78,0.00020547,2]
[368185282,1751052659938,-460.0,0.00020547,2]
[368185283,1751052659949,-460.0,0.00020547,2]
[368185284,1751052659958,-460.0,0.00020547,2]
[368185285,1751052659967,-460.0,0.00020547,2]
[368185286,1751052659976,-460.0,0.00020547,2]
[368185287,1751052659989,-460.0,0.00020547,2]
[368185288,1751052659998,-460.0,0.00020547,2]
[368185289,1751052660008,-845.73,0.00020547,2]
[368185290,1751052660018,-321.22,0.00020547,2]
[368185291,1751052660029,-460.0,0.00020547,2]
[368185292,1751052660039,-578.18,0.00020547,2]
[368185293,1751052660049,-460.0,0.00020547,2]
[368185294,1751052660059,-460.0,0.00020547,2]
[368185295,1751052660070,-460.0,0.00020547,2]
[368185296,1751052660081,-460.0,0.00020547,2]
[368185297,1751052660091,-460.0,0.00020547,2]
[368185298,1751052660101,-460.0,0.00020547,2]
[368185299,1751052660112,-540.1,0.00020547,2]
[368185300,1751052660122,-957.57,0.00020547,2]
[368185301,1751052660133,-605.23,0.00020547,2]
[368185302,1751052660143,-158.2548994,0.00020547,2]
[368185303,1751052660153,-421.82,0.00020547,2]
[368185304,1751052660163,-3376.72,0.00020547,2]
[368185305,1751052660173,-615.39,0.00020547,2]
[368185306,1751052660183,-1140.07,0.00020547,2]
[368185307,1751052660192,-3869.59,0.00020547,2]
[368185308,1751052660202,-460.0,0.00020547,2]
[368185309,1751052660212,-2384.21,0.00020547,2]
[368185310,1751052660222,-637.12,0.00020547,2]
[368185311,1751052660234,-460.0,0.00020547,2]
[368185312,1751052660244,-5918.62,0.00020547,2]
[368185313,1751052660254,-770.71,0.00020547,2]
[368185314,1751052660263,-460.0,0.00020547,2]
[368185315,1751052660273,-460.0,0.00020547,2]
[368185316,1751052660283,-460.0,0.00020547,2]
[368185317,1751052660293,-2145.65,0.00020547,2]
[368185318,1751052660303,-460.0,0.00020547,2]
[368185319,1751052660313,-1645.29,0.00020547,2]
[368185320,1751052660325,-460.0,0.00020547,2]
[368185321,1751052660335,-2364.11,0.00020547,2]
[368185322,1751052660346,-460.0,0.00020547,2]
[368185323,1751052660356,-460.0,0.00020547,2]
[368185324,1751052660370,-460.0,0.00020547,2]
[368185325,1751052660380,-460.0,0.00020547,2]
[368185326,1751052660390,-594.37,0.00020547,2]
[368185327,1751052660401,-460.0,0.00020547,2]
[368185328,1751052660413,-924.4,0.00020547,2]
[368185329,1751052660424,-627.61,0.00020547,2]
[368185330,1751052660434,-2181.9,0.00020547,2]
[368185331,1751052660445,-460.0,0.00020547,2]
[368185332,1751052660455,-544.48814281,0.00020547,2]
[368185333,1751052660465,-460.0,0.00020547,2]
[368185334,1751052660474,-853.71,0.00020547,2]
[368185335,1751052660484,-2297.35,0.00020547,2]
[368185336,1751052660497,-861.77,0.00020547,2]
[368185337,1751052660507,-460.0,0.00020547,2]
[368185338,1751052660516,-460.0,0.00020547,2]
[368185339,1751052660528,-460.0,0.00020547,2]
[368185340,1751052660538,-1670.06,0.00020547,2]
[368185341,1751052660547,-460.0,0.00020547,2]
[368185342,1751052660557,-460.0,0.00020547,2]
[368185343,1751052660566,-460.0,0.00020547,2]